fUST/lending_fUST_20250918
["ID","MTS","AMOUNT","RATE_DAILY","PERIOD"]
[385924560,1758136242507,-480.0,0.00023557,3]
[385924562,1758136242516,-480.0,0.00023557,3]
[385924564,1758136242525,-458.41064,0.00023557,3]
[385924566,1758136242535,-512.36,0.00023557,3]
[385924568,1758136242544,-480.0,0.00023557,3]
[385924570,1758136242553,-480.0,0.00023557,3]
[385924572,1758136242563,-480.0,0.00023557,3]
[385924574,1758136242572,-480.0,0.00023557,3]
[385924575,1758136242580,-480.0,0.00023557,3]
[385924577,1758136242590,-480.0,0.00023557,3]
[385924579,1758136242599,-480.0,0.00023557,3]
[385924581,1758136242609,-221.26117875,0.00023557,3]
[385924583,1758136242619,-480.0,0.00023557,3]
[385924585,1758136242630,-480.0,0.00023557,3]
[385924587,1758136242639,-480.0,0.00023557,3]
[385924589,1758136242647,-480.0,0.00023557,3]
[385924591,1758136242656,-480.0,0.00023557,3]
[385924593,1758136242666,-480.0,0.00023557,3]
[385924595,1758136242675,-480.0,0.00023557,3]
[385924597,1758136242683,-480.0,0.00023557,3]
[385924599,1758136242693,-480.0,0.00023557,3]
[385924601,1758136242702,-480.0,0.00023557,3]
[385924602,1758136242712,-480.0,0.00023557,3]
[385924604,1758136242721,-480.0,0.00023557,3]
[385924606,1758136242730,-480.0,0.00023557,3]
[385924608,1758136242740,-635.91,0.00023557,3]
[385924610,1758136242749,-480.0,0.00023557,3]
[385924612,1758136242758,-480.0,0.00023557,3]
[385924614,1758136242768,-480.0,0.00023557,3]
[385924616,1758136242778,-480.0,0.00023557,3]
[385924618,1758136242787,-480.0,0.00023557,3]
[385924620,1758136242797,-480.0,0.00023557,3]
[385924622,1758136242807,-480.0,0.00023557,3]
[385924624,1758136242816,-669.65,0.00023557,3]
[385924627,1758136242824,-480.0,0.00023557,3]
[385924629,1758136242834,-480.0,0.00023557,3]
[385924630,1758136242843,-480.0,0.00023557,3]
[385924632,1758136242852,-985.34,0.00023558,3]
[385924635,1758136242860,-480.0,0.00023558,3]
[385924638,1758136242870,-151.0,0.00023558,7]
[385924640,1758136242881,-151.0,0.00023558,7]
[385924642,1758136242890,-1950.79,0.00023558,3]
[385924644,1758136242900,-591.79,0.00023558,3]
[385924646,1758136242909,-151.0,0.00023571,7]
[385924648,1758136242919,-151.0,0.00023571,7]
[385924650,1758136242928,-152.812828,0.00023571,7]
[385924652,1758136242937,-151.0,0.00023571,7]
[385924654,1758136242946,-639.11,0.00023571,3]
[385924656,1758136242955,-480.0,0.00023571,3]
[385924658,1758136242964,-1441.29804889,0.00023572,2]
[385924660,1758136242973,-480.0,0.00023572,3]
[385924662,1758136242983,-7999.59,0.00023572,3]
[385924663,1758136242992,-480.0,0.00023572,3]
[385924666,1758136243002,-725.15,0.00023572,3]
[385924667,1758136243011,-480.0,0.00023572,3]
[385924669,1758136243020,-357.90677126,0.00023608,2]
[385924671,1758136243029,-4533.5511716,0.00023608,2]
[385924673,1758136243038,-500.0,0.00023608,2]
[385924675,1758136243047,-500.0,0.00023608,2]
[385924677,1758136243056,-500.0,0.00023608,2]
[385924679,1758136243065,-500.0,0.00023608,2]
[385924681,1758136243074,-500.0,0.00023608,2]
[385924683,1758136243083,-500.0,0.00023608,2]
[385924685,1758136243092,-500.0,0.00023608,2]
[385924687,1758136243101,-172.97695578,0.00023608,2]
[385924689,1758136243110,-500.0,0.00023608,2]
[385924691,1758136243119,-500.0,0.00023608,2]
[385924693,1758136243129,-500.0,0.00023608,2]
[385924695,1758136243139,-500.0,0.00023608,2]
[385924697,1758136243147,-500.0,0.00023608,2]
[385924699,1758136243157,-500.0,0.00023608,2]
[385924701,1758136243166,-450.63407586,0.00023608,2]
[385924703,1758136243174,-500.0,0.00023608,2]
[385924705,1758136243184,-500.0,0.00023608,2]
[385924707,1758136243193,-500.0,0.00023608,2]
[385924709,1758136243202,-4848.758715,0.00023608,2]
[385924711,1758136243211,-152.014873,0.00023608,7]
[385924712,1758136243220,-371.0,0.00023614,2]
[385924714,1758136243229,-370.86588305,0.00023623,3]
[385924716,1758136243239,-480.0,0.00023623,3]
[385924718,1758136243248,-480.0,0.00023623,3]
[385924720,1758136243257,-480.0,0.00023623,3]
[385924722,1758136243266,-480.0,0.00023623,3]
[385924724,1758136243275,-480.0,0.00023623,3]
[385924726,1758136243285,-480.0,0.00023623,3]
[385924728,1758136243294,-480.0,0.00023623,3]
[385924730,1758136243303,-480.0,0.00023623,3]
[385924732,1758136243312,-480.0,0.00023623,3]
[385924734,1758136243322,-504.52477876,0.00023623,3]
[385924736,1758136243331,-500.0,0.00023623,3]
[385924738,1758136243340,-480.0,0.00023623,3]
[385924740,1758136243349,-480.0,0.00023623,3]
[385924742,1758136243358,-480.0,0.00023623,3]
[385924744,1758136243367,-480.0,0.00023623,3]
[385924746,1758136243376,-480.0,0.00023623,3]
[385924748,1758136243386,-480.0,0.00023623,3]
[385924750,1758136243398,-513.66,0.00023623,3]
[385924752,1758136243409,-480.0,0.00023623,3]
[385924754,1758136243420,-480.0,0.00023623,3]
[385924755,1758136243429,-480.0,0.00023623,3]
[385924757,1758136243441,-480.0,0.00023623,3]
[385924759,1758136243450,-480.0,0.00023623,3]
[385924761,1758136243460,-480.0,0.00023623,3]
[385924763,1758136243469,-480.0,0.00023623,3]
[385924765,1758136243478,-480.0,0.00023623,3]
[385924767,1758136243489,-480.0,0.00023623,3]
[385924769,1758136243498,-480.0,0.00023623,3]
[385924771,1758136243507,-480.0,0.00023623,3]
[385924773,1758136243517,-480.0,0.00023623,3]
[385924775,1758136243525,-200.0,0.00023627,2]
[385924777,1758136243535,-480.0,0.00023632,3]
[385924779,1758136243544,-480.0,0.00023632,3]
[385924781,1758136243553,-480.0,0.00023632,3]
[385924783,1758136243561,-480.0,0.00023632,3]
[385924784,1758136243571,-480.0,0.00023632,3]
[385924786,1758136243580,-480.0,0.00023632,3]
[385924788,1758136243589,-220.63971981,0.00023632,3]
[385924790,1758136243598,-480.0,0.00023632,3]
[385924792,1758136243608,-480.0,0.00023632,3]
[385924794,1758136243617,-480.0,0.00023632,3]
[385924796,1758136243629,-605.22560838,0.00023632,3]
[385924798,1758136243638,-480.0,0.00023632,3]
[385924800,1758136243648,-480.0,0.00023632,3]
[385924802,1758136243659,-480.0,0.00023632,3]
[385924804,1758136243668,-152.229482,0.00023632,7]
[385924806,1758136243678,-1745.38,0.00023632,3]
[385924808,1758136243688,-480.0,0.00023632,3]
[385924810,1758136243697,-238.93,0.00023632,3]
[385924812,1758136243706,-480.0,0.00023632,3]
[385924814,1758136243716,-418.86,0.00023632,3]
[385924816,1758136243726,-611.5,0.00023632,3]
[385924818,1758136243735,-281.56,0.00023632,3]
[385924820,1758136243745,-287.81154795,0.00023632,3]
[385924822,1758136243753,-458.66,0.00023632,3]
[385924824,1758136243763,-480.0,0.00023632,3]
[385924825,1758136243772,-480.0,0.00023632,3]
[385924827,1758136243782,-480.0,0.00023632,3]
[385924829,1758136243791,-480.0,0.00023632,3]
[385924831,1758136243802,-480.0,0.00023632,3]
[385924833,1758136243811,-480.0,0.00023632,3]
[385924835,1758136243821,-572.5,0.00023632,3]
[385924837,1758136243830,-426.66,0.00023632,3]
[385924839,1758136243840,-480.0,0.00023632,3]
[385924841,1758136243849,-481.67100053,0.00023632,3]
[385924843,1758136243858,-151.0,0.00023632,7]
[385924845,1758136243867,-151.0,0.00023632,7]
[385924847,1758136243877,-480.0,0.00023632,3]
[385924849,1758136243886,-480.0,0.00023632,3]
[385924851,1758136243896,-480.0,0.00023632,3]
[385924853,1758136243905,-480.0,0.00023632,3]
[385924855,1758136243917,-480.0,0.00023632,3]
[385924857,1758136243927,-480.0,0.00023632,3]
[385924859,1758136243936,-480.0,0.00023632,3]
[385924861,1758136243945,-480.0,0.00023632,3]
[385924863,1758136243954,-480.0,0.0002365,3]
[385924865,1758136243964,-480.0,0.0002365,3]
[385924867,1758136243973,-2988.22,0.0002365,3]
[385924869,1758136243982,-480.0,0.0002365,3]
[385924879,1758136244071,-1250.13,0.0002365,3]
[385924880,1758136244081,-1290.2,0.00023658,3]
[385924882,1758136244090,-480.0,0.00023658,3]
[385924884,1758136244100,-480.0,0.00023658,3]
[385924886,1758136244109,-480.0,0.00023658,3]
[385924888,1758136244118,-480.0,0.00023658,3]
[385924890,1758136244128,-481.82613246,0.00023659,3]
[385924892,1758136244137,-480.0,0.00023659,3]
[385924894,1758136244146,-480.0,0.00023659,3]
[385924896,1758136244156,-480.0,0.00023659,3]
[385924898,1758136244165,-480.0,0.00023659,3]
[385924900,1758136244174,-151.69,0.00023659,3]
[385924902,1758136244184,-480.0,0.00023659,3]
[385924904,1758136244193,-500.0,0.00023673,2]
[385924906,1758136244202,-500.0,0.00023673,2]
[385924907,1758136244211,-200.0,0.0002368,2]
[385924908,1758136244221,-160.0,0.00023684,2]
[385924909,1758136244230,-233.34517135,0.00023684,2]
[385924910,1758136244239,-151.0,0.00023746,3]
[385924911,1758136244248,-151.0,0.00023746,3]
[385924912,1758136244258,-151.0,0.00023746,3]
[385924913,1758136244267,-239.1556791,0.00023746,3]
[385924914,1758136244276,-200.0,0.00023753,2]
[385924915,1758136244285,-480.0,0.00023819,3]
[385924916,1758136244294,-480.0,0.00023819,3]
[385924917,1758136244303,-480.0,0.00023819,3]
[385924918,1758136244312,-751.82,0.00023819,3]
[385924919,1758136244322,-480.0,0.0002382,3]
[385924920,1758136244331,-1000.0,0.00023821,2]
[385924921,1758136244340,-500.0,0.00023821,2]
[385924922,1758136244349,-480.0,0.0002383,3]
[385924923,1758136244359,-1007.4,0.0002383,3]
[385924924,1758136244368,-549.22,0.0002383,3]
[385924925,1758136244380,-310.32,0.0002383,3]
[385924926,1758136244391,-480.0,0.0002383,3]
[385924927,1758136244406,-480.0,0.0002383,3]
[385924928,1758136244415,-480.0,0.0002383,3]
[385924929,1758136244424,-480.0,0.0002383,3]
[385924930,1758136244435,-628.37,0.0002383,3]
[385924931,1758136244444,-243.5,0.0002383,3]
[385924932,1758136244453,-873.36,0.0002383,3]
[385924933,1758136244462,-480.0,0.0002383,3]
[385924935,1758136244472,-621.1,0.0002383,3]
[385924936,1758136244482,-480.0,0.0002383,3]
[385924938,1758136244491,-480.0,0.0002383,3]
[385924940,1758136244500,-480.0,0.00023831,3]
[385924942,1758136244509,-257.74,0.00023831,3]
[385924944,1758136244518,-480.0,0.00023831,3]
[385924945,1758136244527,-480.0,0.00023831,3]
[385924947,1758136244537,-480.0,0.00023831,3]
[385924949,1758136244545,-480.0,0.00023831,3]
[385924951,1758136244555,-1215.82,0.00023831,3]
[385924953,1758136244565,-480.0,0.00023831,3]
[385924955,1758136244574,-480.0,0.00023831,3]
[385924957,1758136244583,-438.08554039,0.00023831,3]
[385924959,1758136244592,-480.0,0.00023831,3]
[385924961,1758136244601,-480.0,0.00023831,3]
[385924963,1758136244610,-480.0,0.00023831,3]
[385924965,1758136244619,-480.0,0.00023831,3]
[385924967,1758136244632,-673.86,0.00023831,3]
[385924969,1758136244641,-480.0,0.00023831,3]
[385924971,1758136244650,-480.0,0.00023831,3]
[385924973,1758136244659,-480.0,0.00023831,3]
[385924975,1758136244668,-480.0,0.00023831,3]
[385924977,1758136244677,-480.0,0.00023831,3]
[385924979,1758136244686,-480.0,0.00023831,3]
[385924981,1758136244695,-407.12969967,0.00023831,3]
[385924983,1758136244704,-153.62,0.00023831,3]
[385924985,1758136244713,-480.0,0.00023831,3]
[385924987,1758136244722,-480.0,0.00023831,3]
[385924988,1758136244731,-479.4,0.00023831,3]
[385924990,1758136244740,-480.0,0.00023831,3]
[385924992,1758136244749,-480.0,0.00023831,3]
[385924994,1758136244758,-234.59,0.00023831,3]
[385924996,1758136244768,-480.0,0.00023831,3]
[385924998,1758136244777,-480.0,0.00023831,3]
[385925000,1758136244786,-480.0,0.00023831,3]
[385925002,1758136244795,-480.0,0.00023831,3]
[385925004,1758136244804,-480.0,0.00023831,3]
[385925006,1758136244814,-480.0,0.00023831,3]
[385925008,1758136244823,-480.0,0.00023831,3]
[385925010,1758136244833,-150.99,0.00023831,3]
[385925012,1758136244843,-480.0,0.00023831,3]
[385925014,1758136244852,-480.0,0.00023831,3]
[385925016,1758136244861,-480.0,0.00023831,3]
[385925018,1758136244870,-480.0,0.00023831,3]
[385925020,1758136244881,-480.0,0.00023831,3]
[385925022,1758136244890,-635.91,0.00023831,3]
[385925024,1758136244899,-480.0,0.00023831,3]
[385925026,1758136244908,-480.0,0.00023831,3]
[385925028,1758136244917,-480.0,0.00023831,3]
[385925030,1758136244926,-480.0,0.00023831,3]
[385925032,1758136244935,-480.0,0.00023831,3]
[385925034,1758136244944,-669.65,0.00023831,3]
[385925035,1758136244953,-480.0,0.00023831,3]
[385925037,1758136244963,-180.72,0.00023831,3]
[385925039,1758136244972,-985.34,0.00023832,3]
[385925041,1758136244981,-480.0,0.00023832,3]
[385925043,1758136244990,-1950.79,0.00023832,3]
[385925045,1758136245000,-591.79,0.00023832,3]
[385925047,1758136245010,-160.0,0.00023842,2]
[385925049,1758136245020,-217.90857035,0.00023842,2]
[385925051,1758136245028,-160.0,0.00023842,2]
[385925053,1758136245037,-847.79063332,0.00023842,2]
[385925055,1758136245047,-639.11,0.00023845,3]
[385925057,1758136245055,-480.0,0.00023845,3]
[385925059,1758136245065,-480.0,0.00023846,3]
[385925061,1758136245074,-7999.59,0.00023846,3]
[385925063,1758136245083,-480.0,0.00023846,3]
[385925065,1758136245092,-725.15,0.00023846,3]
[385925067,1758136245101,-480.0,0.00023846,3]
[385925069,1758136245111,-2638.761,0.0002387,7]
[385925071,1758136245120,-500.0,0.00023873,2]
[385925073,1758136245130,-500.0,0.00023873,2]
[385925075,1758136245139,-500.0,0.00023873,2]
[385925077,1758136245148,-500.0,0.00023873,2]
[385925078,1758136245157,-500.0,0.00023873,2]
[385925080,1758136245166,-500.0,0.00023873,2]
[385925082,1758136245176,-500.0,0.00023873,2]
[385925084,1758136245185,-500.0,0.00023873,2]
[385925086,1758136245194,-480.0,0.00023897,3]
[385925088,1758136245203,-480.0,0.00023897,3]
[385925090,1758136245212,-480.0,0.00023897,3]
[385925092,1758136245221,-461.7,0.00023897,3]
[385925094,1758136245230,-601.28,0.00023897,3]
[385925096,1758136245239,-480.0,0.00023897,3]
[385925098,1758136245248,-480.0,0.00023897,3]
[385925100,1758136245258,-480.0,0.00023897,3]
[385925102,1758136245267,-500.0,0.00023897,3]
[385925104,1758136245277,-480.0,0.00023897,3]
[385925106,1758136245286,-480.0,0.00023897,3]
[385925108,1758136245295,-480.0,0.00023897,3]
[385925110,1758136245304,-480.0,0.00023897,3]
[385925112,1758136245313,-480.0,0.00023897,3]
[385925114,1758136245323,-513.66,0.00023897,3]
[385925116,1758136245332,-480.0,0.00023897,3]
[385925118,1758136245341,-480.0,0.00023897,3]
[385925120,1758136245350,-480.0,0.00023897,3]
[385925122,1758136245359,-480.0,0.00023897,3]
[385925124,1758136245368,-480.0,0.00023897,3]
[385925126,1758136245379,-480.0,0.00023897,3]
[385925128,1758136245389,-480.0,0.00023897,3]
[385925130,1758136245401,-480.0,0.00023897,3]
[385925132,1758136245411,-480.0,0.00023897,3]
[385925134,1758136245420,-480.0,0.00023897,3]
[385925135,1758136245430,-380.0,0.00023902,2]
[385925137,1758136245440,-480.0,0.00023906,3]
[385925139,1758136245450,-480.0,0.00023906,3]
[385925141,1758136245459,-480.0,0.00023906,3]
[385925143,1758136245468,-340.2656274,0.00023906,3]
[385925145,1758136245477,-333.64,0.00023906,3]
[385925147,1758136245486,-480.0,0.00023906,3]
[385925149,1758136245495,-480.0,0.00023906,3]
[385925151,1758136245504,-480.0,0.00023906,3]
[385925153,1758136245513,-480.0,0.00023906,3]
[385925155,1758136245523,-1745.38,0.00023906,3]
[385925157,1758136245531,-480.0,0.00023906,3]
[385925159,1758136245541,-480.0,0.00023906,3]
[385925161,1758136245549,-480.0,0.00023906,3]
[385925163,1758136245558,-480.0,0.00023906,3]
[385925165,1758136245567,-480.0,0.00023906,3]
[385925167,1758136245576,-228.31772915,0.00023906,3]
[385925169,1758136245585,-480.0,0.00023906,3]
[385925171,1758136245594,-480.0,0.00023906,3]
[385925172,1758136245602,-480.0,0.00023906,3]
[385925174,1758136245612,-480.0,0.00023906,3]
[385925176,1758136245621,-480.0,0.00023906,3]
[385925178,1758136245632,-480.0,0.00023906,3]
[385925180,1758136245642,-480.0,0.00023906,3]
[385925182,1758136245651,-1000.0,0.00023921,2]
[385925184,1758136245661,-480.0,0.00023924,3]
[385925186,1758136245669,-480.0,0.00023924,3]
[385925188,1758136245678,-2988.22,0.00023924,3]
[385925190,1758136245687,-480.0,0.00023924,3]
[385925192,1758136245696,-1250.13,0.00023924,3]
[385925194,1758136245708,-1290.2,0.00023932,3]
[385925196,1758136245717,-480.0,0.00023932,3]
[385925199,1758136245727,-480.0,0.00023932,3]
[385925202,1758136245736,-480.0,0.00023932,3]
[385925215,1758136245817,-480.0,0.00023932,3]
[385925217,1758136245826,-480.0,0.00023933,3]
[385925219,1758136245836,-480.0,0.00023933,3]
[385925220,1758136245845,-480.0,0.00023933,3]
[385925222,1758136245854,-480.0,0.00023933,3]
[385925224,1758136245863,-480.0,0.00023933,3]
[385925226,1758136245873,-371.0,0.00023965,2]
[385925228,1758136245884,-371.0,0.00023988,2]
[385925230,1758136245893,-10000.02,0.0002399,2]
[385925232,1758136245903,-151.0,0.0002402,3]
[385925234,1758136245912,-276.78883637,0.0002402,3]
[385925236,1758136245921,-480.0,0.00024093,3]
[385925238,1758136245931,-480.0,0.00024093,3]
[385925240,1758136245942,-751.82,0.00024093,3]
[385925242,1758136245952,-480.0,0.00024094,3]
[385925244,1758136245961,-1007.4,0.00024104,3]
[385925246,1758136245971,-480.0,0.00024104,3]
[385925248,1758136245981,-480.0,0.00024104,3]
[385925250,1758136245990,-480.0,0.00024104,3]
[385925252,1758136245999,-480.0,0.00024104,3]
[385925254,1758136246009,-628.37,0.00024104,3]
[385925256,1758136246019,-873.36,0.00024104,3]
[385925258,1758136246028,-480.0,0.00024104,3]
[385925260,1758136246037,-480.0,0.00024104,3]
[385925262,1758136246046,-480.0,0.00024104,3]
[385925264,1758136246055,-480.51,0.00024105,3]
[385925266,1758136246064,-480.0,0.00024105,3]
[385925268,1758136246073,-480.0,0.00024105,3]
[385925270,1758136246083,-480.0,0.00024105,3]
[385925272,1758136246092,-1215.82,0.00024105,3]
[385925274,1758136246101,-480.0,0.00024105,3]
[385925276,1758136246110,-480.0,0.00024105,3]
[385925278,1758136246120,-480.0,0.00024105,3]
[385925280,1758136246131,-480.0,0.00024105,3]
[385925282,1758136246141,-480.0,0.00024105,3]
[385925284,1758136246150,-480.0,0.00024105,3]
[385925286,1758136246160,-480.0,0.00024105,3]
[385925288,1758136246169,-673.86,0.00024105,3]
[385925290,1758136246179,-480.0,0.00024105,3]
[385925292,1758136246188,-480.0,0.00024105,3]
[385925294,1758136246197,-480.0,0.00024105,3]
[385925296,1758136246206,-480.0,0.00024105,3]
[385925297,1758136246215,-367.37128725,0.00024105,3]
[385925299,1758136246225,-497.37,0.00024105,3]
[385925301,1758136246234,-480.0,0.00024105,3]
[385925303,1758136246243,-480.0,0.00024105,3]
[385925305,1758136246252,-480.0,0.00024105,3]
[385925307,1758136246261,-480.0,0.00024105,3]
[385925309,1758136246270,-480.0,0.00024105,3]
[385925311,1758136246279,-480.0,0.00024105,3]
[385925313,1758136246288,-480.0,0.00024105,3]
[385925315,1758136246298,-480.0,0.00024105,3]
[385925317,1758136246307,-480.0,0.00024105,3]
[385925319,1758136246317,-480.0,0.00024105,3]
[385925321,1758136246326,-480.0,0.00024105,3]
[385925323,1758136246336,-480.0,0.00024105,3]
[385925325,1758136246345,-480.0,0.00024105,3]
[385925327,1758136246354,-480.0,0.00024105,3]
[385925329,1758136246363,-480.0,0.00024105,3]
[385925331,1758136246372,-635.91,0.00024105,3]
[385925333,1758136246383,-480.0,0.00024105,3]
[385925335,1758136246394,-480.0,0.00024105,3]
[385925337,1758136246403,-480.0,0.00024105,3]
[385925338,1758136246412,-480.0,0.00024105,3]
[385925340,1758136246422,-480.0,0.00024105,3]
[385925342,1758136246431,-669.65,0.00024105,3]
[385925344,1758136246441,-480.0,0.00024105,3]
[385925346,1758136246450,-985.34,0.00024106,3]
[385925348,1758136246459,-480.0,0.00024106,3]
[385925350,1758136246471,-1950.79,0.00024106,3]
[385925352,1758136246480,-591.79,0.00024106,3]
[385925354,1758136246489,-150.0,0.00024109,2]
[385925356,1758136246498,-639.11,0.00024119,3]
[385925358,1758136246508,-480.0,0.00024119,3]
[385925360,1758136246517,-480.0,0.0002412,3]
[385925362,1758136246526,-7999.59,0.0002412,3]
[385925364,1758136246535,-480.0,0.0002412,3]
[385925366,1758136246544,-725.15,0.0002412,3]
[385925368,1758136246553,-480.0,0.0002412,3]
[385925370,1758136246563,-13968.29258185,0.0002413,5]
[385925372,1758136246572,-160.0,0.00024145,4]
[385925374,1758136246581,-1402.00249473,0.00024152,2]
[385925376,1758136246592,-416.9,0.00024171,3]
[385925378,1758136246606,-480.0,0.00024171,3]
[385925381,1758136246619,-621.99,0.00024171,3]
[385925383,1758136246634,-480.0,0.00024171,3]
[385925385,1758136246645,-480.0,0.00024171,3]
[385925387,1758136246658,-480.0,0.00024171,3]
[385925390,1758136246671,-480.0,0.00024171,3]
[385925392,1758136246685,-480.0,0.00024171,3]
[385925395,1758136246697,-480.0,0.00024171,3]
[385925397,1758136246711,-517.12,0.00024171,3]
[385925399,1758136246723,-480.0,0.00024171,3]
[385925402,1758136246736,-513.66,0.00024171,3]
[385925404,1758136246749,-514.25,0.00024171,3]
[385925406,1758136246761,-480.0,0.00024171,3]
[385925409,1758136246774,-480.0,0.00024171,3]
[385925411,1758136246787,-480.0,0.00024171,3]
[385925413,1758136246799,-357.82528036,0.00024171,3]
[385925415,1758136246810,-480.0,0.00024171,3]
[385925416,1758136246820,-150.0,0.00024173,2]
[385925417,1758136246833,-480.0,0.0002418,3]
[385925418,1758136246846,-480.0,0.0002418,3]
[385925419,1758136246860,-159.65174092,0.0002418,3]
[385925420,1758136246873,-384.06,0.0002418,3]
[385925423,1758136246891,-480.0,0.0002418,3]
[385925425,1758136246905,-480.0,0.0002418,3]
[385925427,1758136246919,-480.0,0.0002418,3]
[385925430,1758136246931,-1745.38,0.0002418,3]
[385925432,1758136246942,-480.0,0.0002418,3]
[385925434,1758136246953,-452.48,0.0002418,3]
[385925436,1758136246965,-163.82,0.0002418,3]
[385925439,1758136246979,-480.0,0.0002418,3]
[385925441,1758136246993,-480.0,0.0002418,3]
[385925443,1758136247003,-480.0,0.0002418,3]
[385925445,1758136247014,-429.527272,0.0002418,3]
[385925447,1758136247026,-495.35,0.0002418,3]
[385925450,1758136247039,-480.0,0.00024198,3]
[385925452,1758136247050,-311.04,0.00024198,3]
[385925454,1758136247061,-2988.22,0.00024198,3]
[385925456,1758136247073,-480.0,0.00024198,3]
[385925459,1758136247084,-1250.13,0.00024198,3]
[385925461,1758136247096,-1290.2,0.00024206,3]
[385925463,1758136247108,-480.0,0.00024206,3]
[385925465,1758136247119,-480.0,0.00024206,3]
[385925468,1758136247132,-480.0,0.00024206,3]
[385925470,1758136247144,-480.0,0.00024207,3]
[385925472,1758136247156,-480.0,0.00024207,3]
[385925474,1758136247167,-480.0,0.00024207,3]
[385925476,1758136247179,-480.0,0.00024207,3]
[385925478,1758136247190,-1000.0,0.00024221,2]
[385925481,1758136247202,-160.0,0.00024259,2]
[385925483,1758136247214,-380.0,0.00024263,2]
[385925485,1758136247225,-236.0,0.00024294,3]
[385925488,1758136247237,-380.0,0.00024319,2]
[385925490,1758136247248,-480.0,0.00024367,3]
[385925492,1758136247260,-480.0,0.00024367,3]
[385925494,1758136247271,-751.82,0.00024367,3]
[385925496,1758136247282,-480.0,0.00024368,3]
[385925498,1758136247294,-1500.0,0.00024368,2]
[385925501,1758136247305,-1007.4,0.00024378,3]
[385925503,1758136247317,-480.0,0.00024378,3]
[385925505,1758136247328,-490.23,0.00024378,3]
[385925507,1758136247339,-480.0,0.00024378,3]
[385925510,1758136247351,-480.0,0.00024378,3]
[385925512,1758136247362,-628.37,0.00024378,3]
[385925514,1758136247373,-873.36,0.00024378,3]
[385925516,1758136247387,-480.0,0.00024378,3]
[385925519,1758136247401,-480.0,0.00024378,3]
[385925521,1758136247413,-480.0,0.00024378,3]
[385925523,1758136247424,-480.0,0.00024379,3]
[385925525,1758136247435,-480.0,0.00024379,3]
[385925527,1758136247447,-480.0,0.00024379,3]
[385925530,1758136247459,-1215.82,0.00024379,3]
[385925532,1758136247471,-480.0,0.00024379,3]
[385925534,1758136247482,-480.0,0.00024379,3]
[385925536,1758136247493,-480.0,0.00024379,3]
[385925538,1758136247504,-480.0,0.00024379,3]
[385925540,1758136247517,-480.0,0.00024379,3]
[385925543,1758136247529,-480.0,0.00024379,3]
[385925545,1758136247539,-480.0,0.00024379,3]
[385925547,1758136247549,-673.86,0.00024379,3]
[385925549,1758136247558,-529.47821025,0.00024379,3]